fUSD/lending_fUSD_20250623
["ID","MTS","AMOUNT","RATE_DAILY","PERIOD"]
[367268778,1750722700395,-985.74,0.00023835,2]
[367268779,1750722700405,-576.52,0.00023835,2]
[367268780,1750722700415,-700.64,0.00023835,2]
[367268781,1750722700426,-736.73,0.00023835,2]
[367268782,1750722700436,-702.04,0.00023835,2]
[367268783,1750722700446,-1301.35,0.00023835,2]
[367268784,1750722700456,-1417.45,0.00023835,2]
[367268785,1750722700466,-490.0,0.00023835,2]
[367268786,1750722700476,-490.0,0.00023835,2]
[367268787,1750722700487,-519.34,0.00023835,2]
[367268788,1750722700498,-498.78,0.00023835,2]
[367268789,1750722700508,-3452.51,0.00023835,2]
[367268790,1750722700519,-642.9,0.00023835,2]
[367268791,1750722700529,-8799.43,0.00023835,2]
[367268792,1750722700540,-662.96,0.00023835,2]
[367268793,1750722700550,-600.19,0.00023835,2]
[367268794,1750722700560,-730.64,0.00023835,2]
[367268795,1750722700571,-639.41,0.00023835,2]
[367268796,1750722700581,-748.1,0.00023835,2]
[367268797,1750722700592,-1130.36,0.00023835,2]
[367268798,1750722700603,-1224.48,0.00023835,2]
[367268799,1750722700614,-1249.16,0.00023835,2]
[367268800,1750722700625,-490.0,0.00023835,2]
[367268801,1750722700635,-945.68,0.00023835,2]
[367268802,1750722700647,-1953.11,0.00023835,2]
[367268803,1750722700659,-662.33,0.00023835,2]
[367268804,1750722700889,-1018.92,0.00023835,2]
[367268805,1750722700902,-2032.29,0.00023835,2]
[367268806,1750722700912,-1017.38,0.00023835,2]
[367268807,1750722700924,-955.04,0.00023835,2]
[367268808,1750722700934,-490.0,0.00023835,2]
[367268809,1750722700944,-598.02,0.00023835,2]
[367268810,1750722700954,-528.13,0.00023835,2]
[367268811,1750722700965,-508.28,0.00023835,2]
[367268812,1750722700974,-773.09,0.00023835,2]
[367268813,1750722700983,-1383.11,0.00023835,2]
[367268814,1750722700992,-490.0,0.00023835,2]
[367268815,1750722701002,-614.35,0.00023835,2]
[367268816,1750722701011,-748.23,0.00023835,2]
[367268817,1750722701020,-2159.87,0.00023835,2]
[367268818,1750722701029,-743.65,0.00023835,2]
[367268819,1750722701039,-714.68,0.00023835,2]
[367268820,1750722701048,-1188.26,0.00023835,2]
[367268821,1750722701058,-568.52,0.00023835,2]
[367268822,1750722701068,-490.0,0.00023835,2]
[367268823,1750722701079,-490.0,0.00023835,2]
[367268824,1750722701089,-3712.65,0.00023835,2]
[367268825,1750722701099,-666.68,0.00023835,2]
[367268826,1750722701110,-6183.08,0.00023835,2]
[367268827,1750722701119,-2265.52,0.00023835,2]
[367268828,1750722701130,-665.97,0.00023835,2]
[367268829,1750722701139,-1772.95,0.00023835,2]
[367268830,1750722701149,-501.76,0.00023835,2]
[367268831,1750722701160,-748.79,0.00023835,2]
[367268832,1750722701169,-1159.28,0.00023835,2]
[367268833,1750722701179,-490.0,0.00023835,2]
[367268834,1750722701191,-490.0,0.00023835,2]
[367268835,1750722701203,-490.0,0.00023835,2]
[367268836,1750722701214,-588.89,0.00023835,2]
[367268837,1750722701224,-3504.75,0.00023835,2]
[367268838,1750722701235,-614.49,0.00023835,2]
[367268839,1750722701246,-720.06,0.00023835,2]
[367268840,1750722701255,-682.84,0.00023835,2]
[367268841,1750722701265,-490.0,0.00023835,2]
[367268842,1750722701276,-991.61,0.00023835,2]
[367268843,1750722701286,-1219.28,0.00023835,2]
[367268844,1750722701296,-580.16,0.00023835,2]
[367268845,1750722701307,-490.0,0.00023835,2]
[367268846,1750722701319,-943.5,0.00023835,2]
[367268847,1750722701329,-490.0,0.00023835,2]
[367268848,1750722701340,-490.0,0.00023835,2]
[367268849,1750722701349,-2894.4,0.00023835,2]
[367268850,1750722701358,-2679.66,0.00023835,2]
[367268851,1750722701368,-922.8,0.00023835,2]
[367268852,1750722701378,-1234.77,0.00023835,2]
[367268853,1750722701388,-1380.74,0.00023835,2]
[367268854,1750722701398,-1053.74,0.00023835,2]
[367268855,1750722701408,-490.0,0.00023835,2]
[367268856,1750722701419,-2030.88,0.00023835,2]
[367268857,1750722701430,-684.68,0.00023835,2]
[367268858,1750722701439,-1872.56,0.00023835,2]
[367268859,1750722701449,-490.0,0.00023835,2]
[367268860,1750722701459,-490.0,0.00023835,2]
[367268861,1750722701470,-490.0,0.00023835,2]
[367268862,1750722701480,-3876.92,0.00023835,2]
[367268863,1750722701490,-767.49,0.00023835,2]
[367268864,1750722701501,-8470.08,0.00023835,2]
[367268865,1750722701510,-490.0,0.00023835,2]
[367268866,1750722701521,-654.11,0.00023835,2]
[367268867,1750722701531,-900.72,0.00023835,2]
[367268868,1750722701541,-1352.33,0.00023835,2]
[367268869,1750722701551,-1340.74,0.00023835,2]
[367268870,1750722701560,-1097.54,0.00023835,2]
[367268871,1750722701570,-490.0,0.00023835,2]
[367268872,1750722701579,-3230.89,0.00023835,2]
[367268873,1750722701589,-490.0,0.00023835,2]
[367268874,1750722701599,-866.86,0.00023835,2]
[367268875,1750722701609,-1448.28,0.00023835,2]
[367268876,1750722701619,-490.0,0.00023835,2]
[367268877,1750722701629,-771.53,0.00023835,2]
[367268878,1750722701638,-490.0,0.00023835,2]
[367268879,1750722701648,-490.0,0.00023835,2]
[367268880,1750722701658,-490.0,0.00023835,2]
[367268881,1750722701667,-2349.97,0.00023835,2]
[367268882,1750722701676,-5871.64,0.00023835,2]
[367268883,1750722701685,-537.03,0.00023835,2]
[367268884,1750722701694,-6144.25,0.00023835,2]
[367268885,1750722701704,-490.0,0.00023835,2]
[367268886,1750722701713,-490.0,0.00023835,2]
[367268887,1750722701723,-490.0,0.00023835,2]
[367268888,1750722701732,-490.0,0.00023835,2]
[367268889,1750722701742,-3583.29,0.00023835,2]
[367268890,1750722701752,-514.78,0.00023835,2]
[367268891,1750722701761,-656.93,0.00023835,2]
[367268892,1750722701771,-701.3,0.00023835,2]
[367268893,1750722701780,-693.71,0.00023835,2]
[367268894,1750722701789,-1008.04,0.00023835,2]
[367268895,1750722701798,-1747.08,0.00023835,2]
[367268896,1750722701809,-2226.86,0.00023835,2]
[367268897,1750722701819,-923.1,0.00023835,2]
[367268898,1750722701828,-857.2,0.00023835,2]
[367268899,1750722701838,-490.0,0.00023835,2]
[367268900,1750722701849,-895.24,0.00023835,2]
[367268901,1750722701859,-490.0,0.00023835,2]
[367268902,1750722701868,-861.76,0.00023835,2]
[367268903,1750722701877,-490.0,0.00023835,2]
[367268904,1750722701886,-419.01,0.00023836,2]
[367268905,1750722701895,-293.22941206,0.00023837,2]
[367268906,1750722701905,-150.0,0.0002384,2]
[367268907,1750722701914,-150.0,0.00023842,2]
[367268908,1750722701923,-151.0,0.00023846,2]
[367268909,1750722701932,-150.0,0.00023847,2]
[367268910,1750722701941,-150.0,0.00023862,2]
[367268911,1750722701950,-150.0,0.00023862,2]
[367268912,1750722701959,-252.50423731,0.00023877,2]
[367268913,1750722701969,-150.0,0.00023878,2]
[367268914,1750722701978,-2000.0,0.0002388,2]
[367268915,1750722701987,-150.0,0.00023881,2]
[367268916,1750722701996,-333.0,0.00023887,2]
[367268917,1750722702005,-150.0,0.00023888,2]
[367268918,1750722702014,-150.0,0.00023892,2]
[367268919,1750722702023,-150.0,0.00023893,2]
[367268920,1750722702032,-834.59255148,0.000239,10]
[367268921,1750722702041,-150.0,0.00023909,2]
[367268922,1750722702050,-455.4247034,0.00023914,2]
[367268923,1750722702059,-3084.20117464,0.00023915,2]
[367268924,1750722702068,-211.0,0.00023923,2]
[367268925,1750722702078,-150.0,0.00023927,2]
[367268926,1750722702087,-150.0,0.00023937,2]
[367268927,1750722702096,-150.0,0.00023948,2]
[367268928,1750722702105,-150.0,0.00023955,2]
[367268929,1750722702114,-150.0,0.00023957,2]
[367268930,1750722702123,-150.0,0.0002396,2]
[367268931,1750722702132,-162.53329233,0.0002397,2]
[367268932,1750722702141,-208.0,0.0002397,2]
[367268933,1750722702150,-150.0,0.00023972,2]
[367268934,1750722702161,-150.0,0.00023978,2]
[367268935,1750722702169,-150.0,0.00023979,2]
[367268936,1750722702179,-150.0,0.00023979,2]
[367268937,1750722702188,-150.0,0.00023984,2]
[367268938,1750722702197,-150.0,0.00023989,2]
[367268939,1750722702206,-150.0,0.0002399,2]
[367268940,1750722702215,-5628.8712442,0.00023993,2]
[367268941,1750722702224,-72410.7798834,0.00023993,2]
[367268942,1750722702232,-175.470344,0.00023993,7]
[367268943,1750722702242,-3695.9021738,0.00023993,2]
[367268944,1750722702251,-3184.7340773,0.00023993,2]
[367268945,1750722702261,-1057.5008319,0.00023993,2]
[367268946,1750722702270,-35759.0942172,0.00023993,2]
[367268947,1750722702278,-5522.17867811,0.00024,2]
[367268948,1750722702287,-1712.08184744,0.00024,2]
[367268949,1750722702297,-157.96,0.00024,2]
[367268950,1750722702306,-157.96,0.00024,2]
[367268951,1750722702315,-2000.0,0.00024,2]
[367268952,1750722702326,-151.0,0.00024,2]
[367268953,1750722702335,-165.7,0.00024,10]
[367268954,1750722702345,-1319.7888,0.00024,2]
[367268955,1750722702354,-1319.7888,0.00024,2]
[367268956,1750722702364,-963.4804,0.00024,2]
[367268957,1750722702373,-963.4804,0.00024,2]
[367268958,1750722702382,-152.1155347,0.00024009,2]
[367268959,1750722702391,-210.0,0.0002402,2]
[367268960,1750722702400,-211.0,0.00024045,2]
[367268961,1750722702410,-3084.20117464,0.00024066,2]
[367268962,1750722702419,-4970.0989899,0.00024093,2]
[367268963,1750722702429,-63936.2188874,0.00024093,2]
[367268964,1750722702438,-3266.7683231,0.00024093,2]
[367268965,1750722702448,-31638.8807699,0.00024093,2]
[367268966,1750722702457,-211.0,0.00024098,2]
[367268967,1750722702467,-2487.98,0.000241,2]
[367268968,1750722702476,-8828.66,0.000241,2]
[367268969,1750722702485,-1568.47,0.000241,2]
[367268970,1750722702494,-273.13,0.000241,2]
[367268971,1750722702504,-2316.081396,0.000241,2]
[367268972,1750722702513,-162.54,0.000241,2]
[367268973,1750722702524,-1903.0,0.000241,2]
[367268974,1750722702534,-615.04688015,0.000241,2]
[367268975,1750722702543,-768.02,0.00024107,2]
[367268976,1750722702552,-768.02,0.00024108,2]
[367268977,1750722702561,-490.0,0.00024109,2]
[367268978,1750722702570,-490.0,0.00024109,2]
[367268979,1750722702579,-490.0,0.00024109,2]
[367268980,1750722702588,-544.01,0.00024109,2]
[367268981,1750722702598,-490.0,0.00024109,2]
[367268982,1750722702607,-490.0,0.00024109,2]
[367268983,1750722702616,-490.0,0.00024109,2]
[367268984,1750722702626,-490.0,0.00024109,2]
[367268985,1750722702636,-490.0,0.00024109,2]
[367268986,1750722702645,-490.0,0.00024109,2]
[367268987,1750722702653,-490.0,0.00024109,2]
[367268988,1750722702662,-769.985057,0.00024109,2]
[367268989,1750722702671,-490.0,0.00024109,2]
[367268990,1750722702680,-846.230061,0.00024109,2]
[367268991,1750722702690,-490.0,0.00024109,2]
[367268992,1750722702699,-2887.656586,0.00024109,2]
[367268993,1750722702710,-490.0,0.00024109,2]
[367268994,1750722702720,-490.0,0.00024109,2]
[367268995,1750722702729,-155.477472,0.00024109,2]
[367268996,1750722702739,-490.0,0.00024109,2]
[367268997,1750722702749,-490.0,0.00024109,2]
[367268998,1750722702759,-278.1797086,0.00024109,2]
[367268999,1750722702770,-490.0,0.00024109,2]
[367269000,1750722702780,-565.9,0.00024109,2]
[367269001,1750722702788,-490.0,0.00024109,2]
[367269002,1750722702798,-713.41,0.00024109,2]
[367269003,1750722702808,-490.0,0.00024109,2]
[367269004,1750722702817,-828.92,0.00024109,2]
[367269005,1750722702826,-490.0,0.00024109,2]
[367269006,1750722702837,-1068.05,0.00024109,2]
[367269007,1750722702848,-490.0,0.00024109,2]
[367269008,1750722702858,-241.80738263,0.00024109,2]
[367269009,1750722702867,-490.0,0.00024109,2]
[367269010,1750722702876,-490.0,0.00024109,2]
[367269011,1750722702886,-490.0,0.00024109,2]
[367269012,1750722702895,-500.18,0.00024109,2]
[367269013,1750722702904,-716.27,0.00024109,2]
[367269014,1750722702915,-155.47747,0.00024109,2]
[367269015,1750722702924,-545.2,0.00024109,2]
[367269016,1750722702933,-552.43,0.00024109,2]
[367269017,1750722702943,-601.5,0.00024109,2]
[367269018,1750722702955,-490.0,0.00024109,2]
[367269019,1750722702964,-248.76957397,0.00024109,2]
[367269020,1750722702973,-490.0,0.00024109,2]
[367269021,1750722702983,-611.92,0.00024109,2]
[367269022,1750722702993,-204.37424844,0.00024109,2]
[367269023,1750722703004,-952.95,0.00024109,2]
[367269024,1750722703013,-718.57,0.00024109,2]
[367269025,1750722703024,-579.77791638,0.00024109,2]
[367269026,1750722703034,-490.0,0.00024109,2]
[367269027,1750722703043,-757.18,0.00024109,2]
[367269028,1750722703053,-679.45,0.00024109,2]
[367269029,1750722703062,-514.37,0.00024109,2]
[367269030,1750722703072,-1110.86,0.00024109,2]
[367269031,1750722703081,-639.7,0.00024109,2]
[367269032,1750722703091,-505.49,0.00024109,2]
[367269033,1750722703099,-490.0,0.00024109,2]
[367269034,1750722703110,-490.0,0.00024109,2]
[367269035,1750722703121,-490.0,0.00024109,2]
[367269036,1750722703131,-582.87,0.00024109,2]
[367269037,1750722703140,-490.0,0.00024109,2]
[367269038,1750722703149,-751.41,0.00024109,2]
[367269039,1750722703158,-490.0,0.00024109,2]
[367269040,1750722703167,-490.0,0.00024109,2]
[367269041,1750722703177,-980.74,0.00024109,2]
[367269042,1750722703186,-554.04,0.00024109,2]
[367269043,1750722703195,-609.37,0.00024109,2]
[367269044,1750722703204,-490.0,0.00024109,2]
[367269045,1750722703214,-533.71,0.00024109,2]
[367269046,1750722703223,-490.0,0.00024109,2]
[367269047,1750722703232,-849.14,0.00024109,2]
[367269048,1750722703242,-363.53891537,0.00024109,2]
[367269049,1750722703252,-490.0,0.00024109,2]
[367269050,1750722703263,-491.0,0.00024109,2]
[367269051,1750722703274,-490.0,0.00024109,2]
[367269052,1750722703285,-490.0,0.00024109,2]
[367269053,1750722703296,-1013.16,0.00024109,2]
[367269054,1750722703307,-490.0,0.00024109,2]
[367269055,1750722703316,-490.0,0.00024109,2]
[367269056,1750722703325,-490.0,0.00024109,2]
[367269057,1750722703335,-281.35294326,0.00024109,2]
[367269058,1750722703344,-579.65,0.00024109,2]
[367269059,1750722703354,-780.51,0.00024109,2]
[367269060,1750722703363,-869.78,0.00024109,2]
[367269061,1750722703373,-660.96,0.00024109,2]
[367269062,1750722703382,-627.48,0.00024109,2]
[367269063,1750722703392,-593.95,0.00024109,2]
[367269064,1750722703401,-633.11,0.00024109,2]
[367269065,1750722703412,-785.73,0.00024109,2]
[367269066,1750722703421,-490.0,0.00024109,2]
[367269067,1750722703431,-490.0,0.00024109,2]
[367269068,1750722703440,-490.0,0.00024109,2]
[367269069,1750722703450,-490.0,0.00024109,2]
[367269070,1750722703459,-918.6,0.00024109,2]
[367269071,1750722703469,-490.0,0.00024109,2]
[367269072,1750722703478,-490.0,0.00024109,2]
[367269073,1750722703488,-497.36,0.00024109,2]
[367269074,1750722703497,-471.19128774,0.00024109,2]
[367269075,1750722703507,-589.72,0.00024109,2]
[367269076,1750722703517,-602.51,0.00024109,2]
[367269077,1750722703526,-759.11,0.00024109,2]
[367269078,1750722703537,-531.11,0.00024109,2]
[367269079,1750722703546,-502.6,0.00024109,2]
[367269080,1750722703556,-1316.83,0.00024109,2]
[367269081,1750722703566,-975.58,0.00024109,2]
[367269082,1750722703575,-949.61,0.00024109,2]
[367269083,1750722703585,-490.0,0.00024109,2]
[367269084,1750722703594,-490.0,0.00024109,2]
[367269085,1750722703603,-653.64,0.00024109,2]
[367269086,1750722703613,-490.0,0.00024109,2]
[367269087,1750722703622,-490.0,0.00024109,2]
[367269088,1750722703631,-490.0,0.00024109,2]
[367269089,1750722703641,-490.0,0.00024109,2]
[367269090,1750722703650,-648.14,0.00024109,2]
[367269091,1750722703659,-490.0,0.00024109,2]
[367269092,1750722703670,-556.82,0.00024109,2]
[367269093,1750722703679,-686.78,0.00024109,2]
[367269094,1750722703689,-674.79,0.00024109,2]
[367269095,1750722703699,-1024.07,0.00024109,2]
[367269096,1750722703708,-624.84,0.00024109,2]
[367269097,1750722703717,-490.0,0.00024109,2]
[367269098,1750722703727,-490.0,0.00024109,2]
[367269099,1750722703736,-678.9,0.00024109,2]
[367269100,1750722703746,-490.0,0.00024109,2]
[367269101,1750722703756,-490.0,0.00024109,2]
[367269102,1750722703766,-490.0,0.00024109,2]
[367269103,1750722703775,-1001.69,0.00024109,2]
[367269104,1750722703784,-490.0,0.00024109,2]
[367269105,1750722703794,-490.0,0.00024109,2]
[367269106,1750722703803,-490.0,0.00024109,2]
[367269107,1750722703813,-737.47,0.00024109,2]
[367269108,1750722703823,-575.57,0.00024109,2]
[367269109,1750722703832,-490.0,0.00024109,2]
[367269110,1750722703845,-490.0,0.00024109,2]
[367269111,1750722703854,-490.0,0.00024109,2]
[367269112,1750722703863,-490.0,0.00024109,2]
[367269113,1750722703872,-624.47,0.00024109,2]
[367269114,1750722703881,-490.0,0.00024109,2]
[367269115,1750722703891,-505.59,0.00024109,2]
[367269116,1750722703900,-664.7,0.00024109,2]
[367269117,1750722703909,-490.0,0.00024109,2]
[367269118,1750722703918,-490.0,0.00024109,2]
[367269119,1750722703928,-490.0,0.00024109,2]
[367269120,1750722703938,-502.1,0.00024109,2]
[367269121,1750722703950,-490.0,0.00024109,2]
[367269122,1750722703961,-831.47,0.00024109,2]
[367269123,1750722703970,-490.0,0.00024109,2]
[367269124,1750722703980,-889.99,0.00024109,2]
[367269125,1750722703991,-574.36,0.00024109,2]
[367269126,1750722704001,-644.55,0.00024109,2]
[367269127,1750722704011,-891.28,0.00024109,2]
[367269128,1750722704020,-490.0,0.00024109,2]
[367269129,1750722704030,-1024.42,0.00024109,2]
[367269130,1750722704039,-225.96383711,0.00024109,2]
[367269131,1750722704049,-490.0,0.00024109,2]
[367269132,1750722704059,-1009.98,0.00024109,2]
[367269133,1750722704070,-490.0,0.00024109,2]
[367269134,1750722704081,-1140.07,0.00024109,2]
[367269135,1750722704090,-809.41,0.00024109,2]
[367269136,1750722704099,-490.0,0.00024109,2]
[367269137,1750722704109,-490.0,0.00024109,2]
[367269138,1750722704120,-490.0,0.00024109,2]
[367269139,1750722704130,-490.0,0.00024109,2]
[367269140,1750722704141,-490.0,0.00024109,2]
[367269141,1750722704151,-707.74,0.00024109,2]
[367269142,1750722704161,-490.0,0.00024109,2]
[367269143,1750722704170,-524.66,0.00024109,2]
[367269144,1750722704180,-863.02,0.00024109,2]
[367269145,1750722704190,-490.0,0.00024109,2]
[367269146,1750722704199,-490.0,0.00024109,2]
[367269147,1750722704209,-490.0,0.00024109,2]
[367269148,1750722704219,-490.0,0.00024109,2]
[367269149,1750722704229,-743.33,0.00024109,2]
[367269150,1750722704239,-701.07,0.00024109,2]
[367269151,1750722704248,-490.0,0.00024109,2]
[367269152,1750722704258,-8500.71,0.00024109,2]
[367269153,1750722704267,-490.0,0.00024109,2]
[367269154,1750722704276,-726.9,0.00024109,2]
[367269155,1750722704286,-709.26,0.00024109,2]
[367269156,1750722704295,-866.14,0.00024109,2]
[367269157,1750722704305,-658.73,0.00024109,2]
[367269158,1750722704314,-466.39319267,0.00024109,2]
[367269159,1750722704324,-490.0,0.00024109,2]
[367269160,1750722704333,-520.15,0.00024109,2]
[367269161,1750722704343,-668.39,0.00024109,2]
[367269162,1750722704352,-1817.04,0.00024109,2]
[367269163,1750722704362,-490.0,0.00024109,2]
[367269164,1750722704372,-890.8,0.00024109,2]
[367269165,1750722704382,-490.0,0.00024109,2]
[367269166,1750722704391,-490.0,0.00024109,2]
[367269167,1750722704400,-490.0,0.00024109,2]
[367269168,1750722704609,-660.76,0.00024109,2]
[367269169,1750722704620,-889.57,0.00024109,2]
[367269170,1750722704631,-852.61,0.00024109,2]
[367269171,1750722704641,-639.15,0.00024109,2]
[367269172,1750722704651,-725.63,0.00024109,2]
[367269173,1750722704661,-1036.14,0.00024109,2]
[367269174,1750722704670,-490.0,0.00024109,2]
[367269175,1750722704680,-490.0,0.00024109,2]
[367269176,1750722704691,-490.0,0.00024109,2]
[367269177,1750722704702,-250.0,0.00024109,2]
[367269178,1750722704712,-687.15,0.00024109,2]
[367269179,1750722704723,-3451.37,0.00024109,2]
[367269180,1750722704733,-2016.76,0.00024109,2]
[367269181,1750722704745,-490.0,0.00024109,2]
[367269182,1750722704755,-490.0,0.00024109,2]
[367269183,1750722704766,-1486.84,0.00024109,2]
[367269184,1750722704777,-490.0,0.00024109,2]
[367269185,1750722704788,-2600.88,0.00024109,2]
[367269186,1750722704798,-490.0,0.00024109,2]
[367269187,1750722704809,-852.3,0.00024109,2]
[367269188,1750722704821,-490.0,0.00024109,2]
[367269189,1750722704831,-891.95,0.00024109,2]
[367269190,1750722704845,-478.46131009,0.00024109,2]
[367269191,1750722704855,-543.07,0.00024109,2]
[367269192,1750722704866,-490.0,0.00024109,2]
[367269193,1750722704876,-490.0,0.00024109,2]
[367269194,1750722704886,-533.43,0.00024109,2]
[367269195,1750722704895,-685.3,0.00024109,2]
[367269196,1750722704905,-389.4845446,0.00024109,2]
[367269197,1750722704915,-490.0,0.00024109,2]
[367269198,1750722704926,-490.0,0.00024109,2]
[367269199,1750722704936,-490.0,0.00024109,2]
[367269200,1750722704947,-1059.99,0.00024109,2]
[367269201,1750722704958,-1225.41,0.00024109,2]
[367269202,1750722704968,-1859.87,0.00024109,2]
[367269203,1750722704979,-1239.33,0.00024109,2]
[367269204,1750722704989,-747.66,0.00024109,2]
[367269205,1750722704999,-3515.34,0.00024109,2]
[367269206,1750722705009,-490.0,0.00024109,2]
[367269207,1750722705019,-490.0,0.00024109,2]
[367269208,1750722705029,-2258.43,0.00024109,2]
[367269209,1750722705039,-644.73,0.00024109,2]
[367269210,1750722705051,-1049.17,0.00024109,2]
[367269211,1750722705062,-588.18,0.00024109,2]
[367269212,1750722705071,-1516.29,0.00024109,2]
[367269213,1750722705081,-490.0,0.00024109,2]
[367269214,1750722705091,-68697.11,0.00024109,2]
[367269215,1750722705101,-936.03,0.00024109,2]
[367269216,1750722705110,-1139.14,0.00024109,2]
[367269217,1750722705119,-803.72,0.00024109,2]
[367269218,1750722705128,-647.9,0.00024109,2]
[367269219,1750722705138,-516.62,0.00024109,2]
[367269220,1750722705147,-1134.51,0.00024109,2]
[367269221,1750722705156,-1410.85,0.00024109,2]
[367269222,1750722705165,-498.27,0.00024109,2]
[367269223,1750722705174,-490.0,0.00024109,2]
[367269224,1750722705184,-490.0,0.00024109,2]
[367269225,1750722705193,-971.99,0.00024109,2]
[367269226,1750722705203,-490.0,0.00024109,2]
[367269227,1750722705212,-613.92,0.00024109,2]
[367269228,1750722705221,-527.41,0.00024109,2]
[367269229,1750722705231,-854.15,0.00024109,2]
[367269230,1750722705240,-1578.51,0.00024109,2]
[367269231,1750722705249,-502.06,0.00024109,2]
[367269232,1750722705258,-1004.78,0.00024109,2]
[367269233,1750722705268,-722.59,0.00024109,2]
[367269234,1750722705277,-1149.68,0.00024109,2]
[367269235,1750722705288,-490.0,0.00024109,2]
[367269236,1750722705298,-1046.97,0.00024109,2]
[367269237,1750722705308,-490.0,0.00024109,2]
[367269238,1750722705317,-490.0,0.00024109,2]
[367269239,1750722705326,-581.05,0.00024109,2]
[367269240,1750722705336,-1200.68,0.00024109,2]
[367269241,1750722705346,-694.62,0.00024109,2]
[367269242,1750722705357,-490.0,0.00024109,2]
[367269243,1750722705367,-4672.05,0.00024109,2]
[367269244,1750722705379,-507.86,0.00024109,2]
[367269245,1750722705389,-684.55,0.00024109,2]
[367269246,1750722705398,-1066.19,0.00024109,2]
[367269247,1750722705409,-1782.62,0.00024109,2]
[367269248,1750722705419,-4445.32,0.00024109,2]
[367269249,1750722705429,-869.16,0.00024109,2]
[367269250,1750722705439,-490.0,0.00024109,2]
[367269251,1750722705449,-993.54,0.00024109,2]
[367269252,1750722705460,-499.24842826,0.00024109,2]
[367269253,1750722705472,-1775.91,0.00024109,2]
[367269254,1750722705483,-5169.32,0.00024109,2]
[367269255,1750722705493,-775.96,0.00024109,2]
[367269256,1750722705502,-641.17,0.00024109,2]
[367269257,1750722705513,-1008.32,0.00024109,2]
[367269258,1750722705523,-983.36,0.00024109,2]
[367269259,1750722705533,-490.0,0.00024109,2]
[367269260,1750722705542,-1881.06,0.00024109,2]
[367269261,1750722705552,-829.17,0.00024109,2]
[367269262,1750722705563,-1812.42,0.00024109,2]
[367269263,1750722705573,-834.28,0.00024109,2]
[367269264,1750722705584,-857.91,0.00024109,2]
[367269265,1750722705594,-622.57,0.00024109,2]
[367269266,1750722705604,-1188.59,0.00024109,2]
[367269267,1750722705615,-704.39,0.00024109,2]
[367269268,1750722705625,-495.31,0.00024109,2]
[367269269,1750722705635,-798.05,0.00024109,2]
[367269270,1750722705645,-2746.66,0.00024109,2]
[367269271,1750722705656,-490.0,0.00024109,2]
[367269272,1750722705665,-1013.71,0.00024109,2]
[367269273,1750722705676,-769.79,0.00024109,2]
[367269274,1750722705685,-1102.34,0.00024109,2]
[367269275,1750722705695,-490.0,0.00024109,2]
[367269276,1750722705705,-793.99,0.00024109,2]
[367269277,1750722705715,-2843.97,0.00024109,2]